bitfinex-derivatives/quotes_BTCF0:USTF0_20230702
["timestamp","ask_amount","ask_price","bid_price","bid_amount"]
[1688340282432,0.00049038,30592.0,30591.0,0.74598356]
[1688340282729,0.00049038,30592.0,30591.0,0.64812925]
[1688340283521,0.00049038,30592.0,30591.0,0.12084094]
[1688340283719,0.62790338,30592.0,30591.0,0.0229798]
[1688340284226,0.95203307,30592.0,30591.0,0.0229798]
[1688340284932,0.95203307,30592.0,30591.0,0.0033658]
[1688340285635,0.95203307,30592.0,30589.0,0.40927008]
[1688340285833,0.247,30590.0,30589.0,0.42888508]
[1688340286132,0.266614,30590.0,30589.0,0.42888508]
[1688340286321,0.28484369,30590.0,30589.0,0.42888508]
[1688340286524,0.266614,30590.0,30589.0,0.42888508]
[1688340287124,0.28484369,30590.0,30589.0,0.42888508]
[1688340287331,0.53834369,30590.0,30588.0,0.09787008]
[1688340287525,0.53834369,30590.0,30588.0,0.11748608]
[1688340287526,0.28484469,30589.0,30588.0,0.11748608]
[1688340287731,0.28484469,30589.0,30588.0,0.019616]
[1688340288133,0.266615,30589.0,30588.0,0.019616]
[1688340289430,0.28484469,30589.0,30588.0,0.019616]
[1688340289626,0.266615,30589.0,30588.0,0.019616]
[1688340290424,0.266615,30589.0,30588.0,0.03846545]
[1688340291327,0.28484469,30589.0,30588.0,0.019616]
[1688340292735,0.266615,30589.0,30588.0,0.019616]
[1688340294232,0.28484469,30589.0,30588.0,0.019616]
[1688340295338,0.31057689,30589.0,30588.0,0.03846545]
[1688340295533,0.2923472,30589.0,30588.0,0.03846545]
[1688340296139,0.31057689,30589.0,30588.0,0.04269634]
[1688340296339,0.31057689,30589.0,30588.0,0.02384689]
[1688340297538,0.31057689,30589.0,30588.0,0.121772]
[1688340297744,0.31057689,30589.0,30588.0,0.02384689]
[1688340297745,0.2923472,30589.0,30588.0,0.02384689]
[1688340298133,0.247,30590.0,30588.0,0.6179006]
[1688340298335,0.247,30590.0,30589.0,0.36236781]
[1688340298642,0.247,30590.0,30589.0,0.28829544]
[1688340299429,0.247,30590.0,30589.0,0.26944599]
[1688340299634,0.266615,30590.0,30589.0,0.26944599]
[1688340300545,0.28484469,30590.0,30589.0,0.26944599]
[1688340300839,0.266615,30590.0,30589.0,0.26944599]
[1688340301041,0.28484469,30590.0,30589.0,0.12176874]
[1688340301534,0.31036412,30590.0,30589.0,0.12176874]
[1688340303131,0.31036412,30590.0,30589.0,0.02384599]
[1688340308039,0.31036412,30590.0,30589.0,0.15449121]
[1688340308241,0.29213443,30590.0,30589.0,0.42034066]
[1688340308445,0.02551943,30590.0,30589.0,0.63674827]
[1688340308646,0.55339038,30592.0,30589.0,0.69114378]
[1688340308948,0.57928805,30592.0,30591.0,0.265214]
[1688340309344,0.57928805,30592.0,30591.0,0.41470867]
[1688340309550,0.57928805,30592.0,30591.0,0.63110422]
[1688340310250,0.06565647,30600.0,30597.0,0.05]
[1688340310449,0.09687437,30604.0,30599.0,1.2156]
[1688340310652,0.16188862,30606.0,30603.0,0.2456]
[1688340310653,0.11647937,30605.0,30603.0,0.2456]
[1688340310843,0.34387437,30606.0,30604.0,0.28545445]
[1688340311155,0.34387437,30606.0,30605.0,0.2461]
[1688340311156,0.247,30606.0,30605.0,0.2461]
[1688340311352,0.26922969,30606.0,30605.0,0.265705]
[1688340311654,0.251,30606.0,30605.0,0.265705]
[1688340312053,0.26922969,30606.0,30605.0,0.265705]
[1688340312354,0.28883369,30606.0,30605.0,0.265705]
[1688340312651,0.270604,30606.0,30605.0,0.019605]
[1688340314450,0.28883369,30606.0,30605.0,0.019605]
[1688340316448,0.270604,30606.0,30605.0,0.019605]
[1688340316749,0.28883369,30606.0,30605.0,0.019605]
[1688340316948,0.270604,30606.0,30605.0,0.019605]
[1688340317247,0.251,30606.0,30605.0,0.03845445]
[1688340317658,0.251,30606.0,30605.0,0.64485445]
[1688340317659,0.004,30606.0,30605.0,0.64485445]
[1688340322561,0.02701723,30608.0,30605.0,0.64485445]
[1688340322754,0.02701723,30608.0,30607.0,0.266604]
[1688340322950,0.02701723,30608.0,30607.0,0.28545345]
[1688340323862,0.04524692,30608.0,30607.0,0.266604]
[1688340324153,0.02701723,30608.0,30607.0,0.266604]
[1688340324855,0.02701723,30608.0,30607.0,0.28545345]
[1688340331767,0.02701723,30608.0,30607.0,0.266604]
[1688340333363,0.02701723,30608.0,30607.0,0.28545345]
[1688340334658,0.04662023,30608.0,30607.0,0.28545345]
[1688340334861,0.04662023,30608.0,30607.0,0.266604]
[1688340336671,0.04662023,30608.0,30607.0,0.28545345]
[1688340338776,0.04662023,30608.0,30607.0,0.28661364]
[1688340339767,0.04662023,30608.0,30607.0,0.28545345]
[1688340341265,0.02701723,30608.0,30607.0,0.64625345]
[1688340346770,0.00049012,30608.0,30607.0,0.64625345]
[1688340349477,0.3158,30612.0,30608.0,0.26420356]
[1688340349675,0.3413465,30612.0,30611.0,0.247]
[1688340349874,0.3413465,30612.0,30611.0,0.266601]
[1688340350267,0.3413465,30612.0,30611.0,0.28545045]
[1688340352673,0.3413465,30612.0,30611.0,0.28660406]
[1688340354482,0.62617719,30612.0,30611.0,0.02075461]
[1688340354672,0.62617719,30612.0,30611.0,0.019601]
[1688340354874,0.6079475,30612.0,30611.0,0.019601]
[1688340355682,0.6079475,30612.0,30611.0,0.02075461]
[1688340356766,0.6079475,30612.0,30611.0,0.019601]
[1688340358676,0.6079475,30612.0,30611.0,0.02075461]
[1688340359784,0.6079475,30612.0,30611.0,0.019601]
[1688340359974,0.62617719,30612.0,30611.0,0.019601]
[1688340360281,0.6079475,30612.0,30611.0,0.019601]
[1688340360577,0.6079475,30612.0,30611.0,0.13642848]
[1688340360780,0.6079475,30612.0,30611.0,0.11873264]
[1688340361477,0.62617719,30612.0,30611.0,0.11873264]
[1688340361681,0.62617719,30612.0,30611.0,0.11757903]
[1688340362382,0.6079475,30612.0,30611.0,0.11757903]
[1688340362576,0.3609475,30612.0,30611.0,0.266601]
[1688340362779,0.37917719,30612.0,30611.0,0.266601]
[1688340363082,0.3609475,30612.0,30611.0,0.36457903]
[1688340363477,0.37917719,30612.0,30611.0,0.266601]
[1688340364479,0.37917719,30612.0,30610.0,0.049004]
[1688340364480,0.62567719,30612.0,30610.0,0.049004]
[1688340364783,0.26522969,30611.0,30610.0,0.049004]
[1688340364982,0.28483069,30611.0,30610.0,0.049004]
[1688340365784,0.28483069,30611.0,30610.0,0.05015959]
[1688340366578,0.28483069,30611.0,30610.0,0.1154669]
[1688340367677,0.28483069,30611.0,30610.0,0.05015959]
[1688340367888,0.266601,30611.0,30610.0,0.05015959]
[1688340368077,0.266601,30611.0,30610.0,0.1154669]
[1688340368276,0.266601,30611.0,30610.0,0.13431635]
[1688340368479,0.28483069,30611.0,30610.0,0.13431635]
[1688340368783,0.28483069,30611.0,30610.0,0.13316076]
[1688340369179,0.28483069,30611.0,30610.0,0.11431131]
[1688340369484,0.266601,30611.0,30610.0,0.11431131]
[1688340369872,0.266601,30611.0,30610.0,0.049004]
[1688340370077,0.28483069,30611.0,30610.0,0.049004]
[1688340370390,0.266601,30611.0,30610.0,0.11431131]
[1688340370588,0.28483069,30611.0,30610.0,0.11431131]
[1688340371674,0.28483069,30611.0,30610.0,0.049004]
[1688340371875,0.38820506,30611.0,30609.0,0.06530731]
[1688340372090,0.62602969,30610.0,30609.0,0.06530731]
[1688340372296,0.64563169,30610.0,30609.0,0.06530731]
[1688340372786,0.64563169,30610.0,30609.0,0.08606787]
[1688340372976,0.64563169,30610.0,30609.0,0.02076056]
[1688340374783,0.64563169,30610.0,30609.0,0.019603]
[1688340374983,0.74250606,30610.0,30609.0,0.019603]
[1688340375287,0.64563169,30610.0,30609.0,0.08491031]
[1688340375689,0.64563169,30610.0,30609.0,0.08606787]
[1688340376192,0.65213169,30610.0,30608.0,0.00084412]
[1688340376390,0.94322969,30609.0,30606.0,0.06531186]
[1688340376589,0.94322969,30609.0,30605.0,0.06531186]
[1688340376590,0.35011498,30607.0,30605.0,0.06531186]
[1688340376893,0.627404,30606.0,30605.0,0.06531186]
[1688340377088,0.64563369,30606.0,30605.0,0.06531186]
[1688340377283,0.64563369,30606.0,30604.0,0.06311186]
[1688340377284,0.7565292,30606.0,30604.0,0.06311186]
[1688340377486,0.27172969,30605.0,30602.0,0.09846815]
[1688340377695,0.247,30603.0,30602.0,0.09846815]
[1688340377996,0.627406,30603.0,30602.0,0.09846815]
[1688340378178,0.64563569,30603.0,30602.0,0.09846815]
[1688340379490,0.64563569,30603.0,30602.0,0.00049012]
[1688340380486,0.97073569,30603.0,30602.0,0.00049012]
[1688340387784,0.591706,30603.0,30602.0,0.03894657]
[1688340387989,0.019606,30603.0,30602.0,0.28534657]
[1688340388200,0.019606,30603.0,30602.0,0.3833246]
[1688340390398,0.3224271,30604.0,30603.0,0.02265887]
[1688340390597,0.3224271,30604.0,30603.0,0.28776587]
[1688340390993,0.3203271,30604.0,30603.0,0.06111532]
[1688340392595,0.0754271,30604.0,30603.0,0.30701532]
[1688340392893,0.019606,30607.0,30603.0,0.30701532]
[1688340393090,0.019606,30607.0,30606.0,0.266005]
[1688340393304,0.019606,30607.0,30606.0,0.28485445]
[1688340393504,0.04550413,30607.0,30606.0,0.28485445]
[1688340393694,0.019606,30607.0,30606.0,0.28485445]
[1688340399712,0.019606,30607.0,30606.0,0.64565445]
[1688340402500,0.266606,30607.0,30606.0,0.64565445]
[1688340403212,0.266606,30607.0,30606.0,0.28485445]
[1688340403414,0.266606,30607.0,30606.0,0.64565445]
[1688340405908,0.28483569,30607.0,30606.0,0.266005]
[1688340406108,0.266606,30607.0,30606.0,0.266005]
[1688340407710,0.28483569,30607.0,30606.0,0.266005]
[1688340408115,0.266606,30607.0,30606.0,0.266005]
[1688340410018,0.28483569,30607.0,30606.0,0.266005]
[1688340410917,0.266606,30607.0,30606.0,0.266005]
[1688340412611,0.266506,30607.0,30606.0,0.265105]
[1688340414731,0.266506,30607.0,30606.0,0.28395445]
[1688340421227,0.28473569,30607.0,30606.0,0.265105]
[1688340421427,0.266506,30607.0,30606.0,0.265105]
[1688340422029,0.266506,30607.0,30606.0,0.28395445]
[1688340422528,0.266506,30607.0,30606.0,0.03845445]
[1688340422922,0.266506,30607.0,30606.0,0.019605]
[1688340423329,0.28473569,30607.0,30606.0,0.019605]
[1688340423523,0.266506,30607.0,30606.0,0.019605]
[1688340424128,0.28473569,30607.0,30606.0,0.019605]
[1688340424429,0.266506,30607.0,30606.0,0.019605]
[1688340425227,0.266506,30607.0,30606.0,0.03845445]
[1688340426717,0.266506,30607.0,30606.0,0.019605]
[1688340427427,0.266506,30607.0,30606.0,0.11741112]
[1688340428227,0.266506,30607.0,30606.0,0.13626057]
[1688340431339,0.266506,30607.0,30606.0,0.03845445]
[1688340432630,0.266506,30607.0,30606.0,0.28435445]
[1688340433230,0.266506,30607.0,30606.0,0.63130761]
[1688340433632,0.266506,30607.0,30606.0,0.61245816]
[1688340434435,0.266506,30607.0,30606.0,0.63130761]
[1688340434630,0.266506,30607.0,30606.0,0.61245816]
[1688340437344,0.36362098,30607.0,30606.0,0.61245816]
[1688340438246,0.11672098,30607.0,30606.0,0.61245816]
[1688340438444,0.266606,30607.0,30606.0,0.5006618]
[1688340438643,0.266606,30607.0,30606.0,0.52929984]
[1688340439146,0.266606,30607.0,30606.0,0.5006618]
[1688340441449,0.266606,30607.0,30606.0,0.48181235]
[1688340442647,0.266606,30607.0,30606.0,0.48141235]
[1688340455353,0.266606,30607.0,30606.0,0.5002618]
[1688340462256,0.266606,30607.0,30606.0,0.48141235]
[1688340462468,0.266606,30607.0,30606.0,0.48181235]
[1688340462663,0.266606,30607.0,30606.0,0.61256293]
[1688340463967,0.36372098,30607.0,30606.0,0.61256293]
[1688340465463,0.266606,30607.0,30606.0,0.48181235]
[1688340466565,0.266606,30607.0,30606.0,0.5006618]
[1688340469568,0.266606,30607.0,30606.0,0.48181235]
[1688340470267,0.266606,30607.0,30606.0,0.5006618]
[1688340472475,0.266606,30607.0,30606.0,0.2547618]
[1688340473566,0.36372098,30607.0,30606.0,0.2547618]
[1688340473879,0.266606,30607.0,30606.0,0.2547618]
[1688340474176,0.36372098,30607.0,30606.0,0.2547618]
[1688340474568,0.36372098,30607.0,30606.0,0.23591235]
[1688340474984,0.266606,30607.0,30606.0,0.23591235]
[1688340475978,0.36372098,30607.0,30606.0,0.23591235]
[1688340479879,0.36372098,30607.0,30606.0,0.2547618]
[1688340480475,0.266606,30607.0,30606.0,0.2547618]
[1688340480676,0.266606,30607.0,30606.0,0.69310711]
[1688340480869,0.266606,30607.0,30606.0,0.66446907]
[1688340487470,0.266606,30607.0,30606.0,0.5011618]
[1688340488679,0.019606,30607.0,30606.0,0.5011618]
[1688340488884,0.07535116,30608.0,30607.0,0.04151017]
[1688340489081,0.32235116,30608.0,30607.0,0.40755486]
[1688340489669,0.27334116,30608.0,30607.0,0.40755486]
[1688340489881,0.09711498,30609.0,30607.0,0.40755486]
[1688340489882,0.09711498,30610.0,30608.0,0.247]
[1688340490082,0.019603,30611.0,30609.0,0.8616598]
[1688340490277,0.09711498,30612.0,30610.0,0.59334197]
[1688340490480,0.11671598,30612.0,30611.0,0.266602]
[1688340490680,0.36371598,30612.0,30611.0,0.265102]
[1688340491082,0.39014437,30612.0,30611.0,0.265102]
[1688340491388,0.39014437,30612.0,30611.0,0.36252079]
[1688340492390,0.39014437,30612.0,30611.0,0.265102]
[1688340492983,0.39014437,30612.0,30611.0,0.36252079]
[1688340493180,0.02642839,30612.0,30611.0,0.28435145]
[1688340493383,0.02642839,30612.0,30611.0,0.41438607]
[1688340493589,0.3194,30614.0,30611.0,0.41438607]
[1688340493797,0.3194,30614.0,30613.0,0.6078]
[1688340493798,0.34490065,30614.0,30613.0,0.6078]
[1688340493992,0.02550065,30614.0,30613.0,0.6274]
[1688340494288,0.11738424,30615.0,30613.0,0.64624945]
[1688340494494,0.14325551,30615.0,30614.0,0.247]
[1688340494692,0.39025551,30615.0,30614.0,0.2655]
[1688340494897,0.4084852,30615.0,30614.0,0.2655]
[1688340495095,0.39025551,30615.0,30614.0,0.2655]
[1688340495393,0.72235551,30615.0,30614.0,0.2655]
[1688340497408,0.72235551,30615.0,30614.0,0.28434945]
[1688340498297,0.79498071,30615.0,30614.0,0.2655]
[1688340498498,0.72235551,30615.0,30614.0,0.2655]
[1688340499298,0.62524053,30615.0,30614.0,0.2655]
[1688340500210,0.02654053,30615.0,30614.0,0.2651]
[1688340500909,0.02654053,30615.0,30614.0,0.28394945]
[1688340502413,0.35854053,30615.0,30614.0,0.28394945]
[1688340503405,0.37813953,30615.0,30614.0,0.28394945]
[1688340503604,0.62513953,30615.0,30614.0,0.0196]
[1688340504516,0.62513953,30615.0,30614.0,0.03844945]
[1688340507501,0.02654053,30615.0,30614.0,0.28434945]
[1688340507702,0.02654053,30615.0,30614.0,0.34928491]
[1688340510413,0.02654053,30615.0,30614.0,0.28434945]
[1688340510613,0.02654053,30615.0,30614.0,0.64514945]
[1688340511514,0.29263953,30615.0,30614.0,0.3804]
[1688340511724,0.29263953,30615.0,30614.0,0.0196]
[1688340512315,0.31086922,30615.0,30614.0,0.0196]
[1688340512707,0.29263953,30615.0,30614.0,0.0196]
[1688340512910,0.59503953,30615.0,30614.0,0.0196]
[1688340513412,0.61326922,30615.0,30614.0,0.0196]
[1688340513719,0.59503953,30615.0,30614.0,0.0196]
[1688340515217,0.61326922,30615.0,30614.0,0.0196]
[1688340517418,0.04477022,30615.0,30614.0,0.03844945]
[1688340517625,0.21985047,30617.0,30614.0,0.71118491]
[1688340517626,0.11645896,30617.0,30614.0,0.71118491]
[1688340517820,0.11645896,30617.0,30616.0,0.243]
[1688340518027,0.11645896,30617.0,30616.0,0.262598]
[1688340518416,0.266598,30617.0,30616.0,0.28144745]
[1688340519017,0.247,30617.0,30616.0,0.28144745]
[1688340519215,0.02586302,30617.0,30616.0,0.34638291]
[1688340519524,0.36048092,30620.0,30616.0,0.34638291]
[1688340519725,0.36048092,30620.0,30619.0,0.265097]
[1688340520024,0.04948092,30620.0,30619.0,0.265097]
[1688340520417,0.04948092,30620.0,30619.0,0.28394645]
[1688340520617,0.35268092,30620.0,30619.0,0.28394645]
[1688340521220,0.35547349,30620.0,30619.0,0.28394645]
[1688340521628,0.38192008,30620.0,30619.0,0.28394645]
[1688340522527,0.62882008,30620.0,30619.0,0.28394645]
[1688340522727,0.62882008,30620.0,30619.0,0.265097]
[1688340524128,0.62882008,30620.0,30619.0,0.28394645]
[1688340524929,0.57982908,30620.0,30619.0,0.28394645]
[1688340527727,0.59942508,30620.0,30619.0,0.28394645]
[1688340530525,0.57982908,30620.0,30619.0,0.28394645]
[1688340531329,0.59942508,30620.0,30619.0,0.28394645]
[1688340533531,0.00328249,30620.0,30619.0,0.34888191]
[1688340533732,0.11645896,30625.0,30619.0,0.79190902]
[1688340534033,0.06744008,30628.0,30624.0,1.06436257]
[1688340534228,0.06744008,30628.0,30627.0,0.6078]
[1688340534422,0.06744008,30628.0,30627.0,0.627391]
[1688340534627,0.09413499,30628.0,30627.0,0.64624045]
[1688340534927,0.11313499,30628.0,30627.0,0.64624045]
[1688340535329,0.08644008,30628.0,30627.0,0.71115415]
[1688340535529,0.3236,30630.0,30627.0,0.64624045]
[1688340535835,0.3236,30630.0,30629.0,0.2455]
[1688340536031,0.3236,30630.0,30629.0,0.26509]
[1688340536231,0.32878052,30630.0,30629.0,0.26509]
[1688340537426,0.35517917,30630.0,30629.0,0.26509]
[1688340538529,0.03157917,30630.0,30629.0,0.26509]
[1688340538929,0.03157917,30630.0,30629.0,0.28393945]
[1688340542035,0.03157917,30630.0,30629.0,0.26509]
[1688340542828,0.03157917,30630.0,30629.0,0.28393945]
[1688340551148,0.03157917,30630.0,30629.0,0.64473945]
[1688340551543,0.33277917,30630.0,30629.0,0.64473945]
[1688340552244,0.35236917,30630.0,30629.0,0.26509]
[1688340552550,0.59926917,30630.0,30629.0,0.26509]
[1688340553253,0.59926917,30630.0,30629.0,0.28393945]
[1688340553637,0.57967917,30630.0,30629.0,0.28393945]
[1688340555747,0.57967917,30630.0,30629.0,0.26509]
[1688340557650,0.61749886,30630.0,30629.0,0.26509]
[1688340558755,0.61749886,30630.0,30629.0,0.29115473]
[1688340561246,0.59926917,30630.0,30629.0,0.29115473]
[1688340562549,0.35236917,30630.0,30629.0,0.29115473]
[1688340562854,0.35236917,30630.0,30629.0,0.31000418]
[1688340565255,0.35236917,30630.0,30629.0,0.29115473]
[1688340567850,0.37059886,30630.0,30629.0,0.29115473]
[1688340568053,0.97839886,30630.0,30629.0,0.29265473]
[1688340568443,0.97839886,30630.0,30629.0,0.26659]
[1688340568650,0.96016917,30630.0,30629.0,0.26659]
[1688340569247,0.59936917,30630.0,30629.0,0.26659]
[1688340570855,0.61759886,30630.0,30629.0,0.26659]
[1688340571059,0.59936917,30630.0,30629.0,0.26659]
[1688340571560,0.61759886,30630.0,30629.0,0.26659]
[1688340571960,0.59936917,30630.0,30629.0,0.28543945]
[1688340572555,0.35236917,30630.0,30629.0,0.28393945]
[1688340575162,0.35236917,30630.0,30629.0,0.34885315]
[1688340577162,0.37059886,30630.0,30629.0,0.34885315]
[1688340577465,0.37059886,30630.0,30629.0,0.3300037]
[1688340578250,0.37059886,30630.0,30629.0,0.33015364]
[1688340578457,0.35236917,30630.0,30629.0,0.33015364]
[1688340578663,0.35236917,30630.0,30629.0,0.28393945]
[1688340579058,0.35236917,30630.0,30629.0,0.41397407]
[1688340579262,0.35236917,30630.0,30629.0,0.28393945]
[1688340579654,0.69438415,30630.0,30629.0,0.09771937]
[1688340579854,0.59726917,30630.0,30629.0,0.09771937]
[1688340580151,0.72643499,30630.0,30628.0,0.09771937]
[1688340580355,0.34497589,30629.0,30628.0,0.09771937]
[1688340580558,0.50023171,30629.0,30628.0,0.06515943]
[1688340580759,0.40225582,30629.0,30628.0,0.06515943]
[1688340581365,0.42048551,30629.0,30628.0,0.06515943]
[1688340582163,0.42048551,30629.0,30627.0,0.06515943]
[1688340582371,0.62592969,30628.0,30627.0,0.06515943]
[1688340582660,0.64552069,30628.0,30627.0,0.06515943]
[1688340583461,0.77468651,30628.0,30627.0,0.06515943]
[1688340584170,0.64552069,30628.0,30627.0,0.06515943]
[1688340585168,0.64552069,30628.0,30626.0,0.06515943]
[1688340585169,0.247,30627.0,30626.0,0.06515943]
[1688340585368,0.62976397,30627.0,30626.0,0.06515943]
[1688340585563,0.53182069,30627.0,30626.0,0.06515943]
[1688340585764,0.84992069,30627.0,30626.0,0.06515943]
[1688340586166,0.70084923,30627.0,30626.0,0.06515943]
[1688340587275,0.60292069,30627.0,30626.0,0.06515943]
[1688340588066,0.70083859,30627.0,30626.0,0.06515943]
[1688340592170,0.70083859,30627.0,30625.0,0.08475243]
[1688340592370,0.247,30626.0,30625.0,0.08475243]
[1688340592571,0.28482169,30626.0,30625.0,0.08475243]
[1688340593073,0.266592,30626.0,30625.0,0.019593]
[1688340594173,0.28482169,30626.0,30625.0,0.019593]
[1688340594374,0.266592,30626.0,30625.0,0.019593]
[1688340594770,0.28482169,30626.0,30625.0,0.019593]
[1688340599181,0.266592,30626.0,30625.0,0.019593]
[1688340599686,0.28482169,30626.0,30625.0,0.019593]
[1688340600074,0.266592,30626.0,30625.0,0.03844245]
[1688340600476,0.266592,30626.0,30625.0,0.10357078]
[1688340601285,0.266592,30626.0,30625.0,0.03844245]
[1688340601472,0.270592,30626.0,30625.0,0.03844245]
[1688340602179,0.270592,30626.0,30625.0,0.019593]
[1688340602382,0.270592,30626.0,30625.0,0.0847186]
[1688340602585,0.31535156,30626.0,30625.0,0.0847186]
[1688340603279,0.29712187,30626.0,30625.0,0.0847186]
[1688340603585,0.31535156,30626.0,30625.0,0.0847186]
[1688340604284,0.29712187,30626.0,30625.0,0.0847186]
[1688340604884,0.29712187,30626.0,30625.0,0.0651256]
[1688340605086,0.31535156,30626.0,30625.0,0.0651256]
[1688340609192,0.31535156,30626.0,30624.0,0.33168276]
[1688340609378,0.247,30625.0,30624.0,0.33168276]
[1688340609578,0.28482269,30625.0,30624.0,0.33168276]
[1688340610679,0.266593,30625.0,30624.0,0.33168276]
[1688340611082,0.28482269,30625.0,30624.0,0.33168276]
[1688340611488,0.266593,30625.0,30624.0,0.33168276]
[1688340612788,0.28482269,30625.0,30624.0,0.33168276]
[1688340613388,0.266593,30625.0,30624.0,0.33168276]
[1688340614484,0.266593,30625.0,30624.0,0.35053221]
[1688340616082,0.266593,30625.0,30624.0,0.33168276]
[1688340616283,0.28482269,30625.0,30624.0,0.33168276]
[1688340616793,0.266593,30625.0,30624.0,0.33168276]
[1688340618078,0.28482269,30625.0,30624.0,0.33168276]
[1688340618483,0.266593,30625.0,30624.0,0.33168276]
[1688340619188,0.7253109,30625.0,30624.0,0.33168276]
[1688340619389,0.7253109,30625.0,30624.0,0.3968955]
[1688340619581,0.74354059,30625.0,30624.0,0.3968955]
[1688340620794,0.74354059,30625.0,30624.0,0.33168276]
[1688340624091,0.38274059,30625.0,30624.0,0.33168276]
[1688340626292,0.3645109,30625.0,30624.0,0.33168276]
[1688340626495,0.38274059,30625.0,30624.0,0.33168276]
[1688340628200,0.3645109,30625.0,30624.0,0.35053221]
[1688340628604,0.3645109,30625.0,30624.0,0.33168276]
[1688340629594,0.38274059,30625.0,30624.0,0.33168276]
[1688340634601,0.28482269,30625.0,30624.0,0.33168276]
[1688340635103,0.38281231,30625.0,30624.0,0.33168276]
[1688340635806,0.38281231,30625.0,30624.0,0.31208976]
[1688340635999,0.28482269,30625.0,30624.0,0.31208976]
[1688340636303,0.38281183,30625.0,30624.0,0.31208976]
[1688340637403,0.38281183,30625.0,30621.0,0.13003462]
[1688340637404,0.0565,30623.0,30621.0,0.13003462]
[1688340637595,1.02462369,30622.0,30621.0,0.06533554]
[1688340637795,1.02462369,30622.0,30621.0,0.03099777]
[1688340637997,1.02462369,30622.0,30617.0,0.315]
[1688340637998,1.02462369,30622.0,30617.0,0.13003462]
[1688340638293,0.019598,30617.0,30616.0,0.14963262]
[1688340638498,0.266598,30617.0,30616.0,0.34626143]
[1688340638804,0.28482769,30617.0,30616.0,0.13003462]
[1688340638998,0.59932769,30617.0,30616.0,0.13003462]
[1688340639700,0.59932769,30617.0,30615.0,0.43763462]
[1688340639899,0.247,30616.0,30615.0,0.43763462]
[1688340640101,0.266598,30616.0,30615.0,0.65386745]
[1688340640300,0.266598,30616.0,30615.0,0.3076]
[1688340640496,0.28482769,30616.0,30615.0,0.3076]
[1688340641597,0.266598,30616.0,30615.0,0.327199]
[1688340642002,0.266598,30616.0,30615.0,0.45723362]
[1688340642211,0.21756641,30616.0,30615.0,0.34604845]
[1688340643207,0.2357961,30616.0,30615.0,0.34604845]
[1688340643407,0.21756641,30616.0,30615.0,0.34604845]
[1688340643798,0.2357961,30616.0,30615.0,0.34604845]
[1688340643998,0.21756641,30616.0,30615.0,0.327199]
[1688340644411,0.019598,30616.0,30615.0,0.572699]
[1688340644803,0.019598,30616.0,30615.0,0.59154845]
[1688340645412,0.2449,30617.0,30615.0,0.72158307]
[1688340645603,0.02008692,30620.0,30616.0,0.8428592]
[1688340645604,0.24748992,30620.0,30616.0,0.8428592]
[1688340645908,0.00048992,30620.0,30619.0,0.7041012]
[1688340646110,0.00048992,30620.0,30619.0,0.74254765]
[1688340646303,0.0307342,30620.0,30619.0,0.64474645]
[1688340646499,0.00448992,30620.0,30619.0,0.64474645]
[1688340647607,0.00448992,30620.0,30619.0,0.77514812]
[1688340650005,0.00448992,30620.0,30619.0,0.99133851]
[1688340653018,0.00448992,30620.0,30619.0,0.77514812]
[1688340654316,0.00448992,30620.0,30619.0,0.99134029]
[1688340657009,0.25148992,30620.0,30619.0,0.64474645]
[1688340657203,0.25148992,30620.0,30619.0,0.625897]
[1688340657712,0.24748992,30620.0,30619.0,0.625897]
[1688340658917,0.26708592,30620.0,30619.0,0.625897]
[1688340659118,0.26708592,30620.0,30619.0,0.265097]
[1688340659322,0.26708592,30620.0,30619.0,0.28394645]
[1688340660520,0.26708592,30620.0,30619.0,0.265097]
[1688340662228,0.26708592,30620.0,30619.0,0.36292562]
[1688340662520,0.26498592,30620.0,30619.0,0.03844645]
[1688340665408,0.28321561,30620.0,30619.0,0.03844645]
[1688340665725,0.26498592,30620.0,30619.0,0.03844645]
[1688340666409,0.00048992,30620.0,30619.0,0.28544645]
[1688340666809,0.00048992,30620.0,30619.0,0.41584812]
[1688340667419,0.00048992,30620.0,30619.0,0.63204148]
[1688340674424,0.33148992,30620.0,30619.0,0.63204148]
[1688340679828,0.35108592,30620.0,30619.0,0.63204148]
[1688340680729,0.35108592,30620.0,30619.0,0.41584812]
[1688340681120,0.35108592,30620.0,30619.0,0.63205087]
[1688340682520,0.59808592,30620.0,30619.0,0.63055087]
[1688340685335,0.61631561,30620.0,30619.0,0.63055087]
[1688340685519,0.59808592,30620.0,30619.0,0.63055087]
[1688340685725,0.33148992,30620.0,30619.0,0.5010492]
[1688340686622,0.09796498,30625.0,30621.0,0.08170272]
[1688340686830,0.3084,30630.0,30626.0,0.2469]
[1688340687026,0.09796498,30631.0,30629.0,0.70427933]
[1688340687231,0.09796498,30632.0,30630.0,0.38270727]
[1688340687533,0.21557905,30635.0,30631.0,0.247]
[1688340687829,0.5591897,30634.0,30632.0,0.39923745]
[1688340688029,0.5591897,30634.0,30633.0,0.2455]
[1688340688335,0.5591897,30634.0,30633.0,0.265088]
[1688340689032,0.56357922,30634.0,30633.0,0.265088]
[1688340689731,0.56357922,30634.0,30633.0,0.28393745]
[1688340691531,0.56357922,30634.0,30633.0,0.265088]
[1688340691833,0.31667922,30634.0,30633.0,0.265088]
[1688340692630,0.56367922,30634.0,30633.0,0.265088]
[1688340693734,0.56367922,30634.0,30633.0,0.28393745]
[1688340695235,0.31667922,30634.0,30633.0,0.28393745]
[1688340696731,0.56367922,30634.0,30633.0,0.019588]
[1688340697233,0.60149591,30634.0,30633.0,0.019588]
[1688340699741,0.60799591,30634.0,30633.0,0.019588]
[1688340700038,0.03781769,30633.0,30632.0,0.04897]
[1688340700227,0.28471769,30633.0,30632.0,0.04897]
[1688340700635,0.2894551,30633.0,30632.0,0.04897]
[1688340701438,0.2959551,30633.0,30632.0,0.04897]
[1688340703439,0.27772541,30633.0,30632.0,0.04897]
[1688340704242,0.25813741,30633.0,30632.0,0.04897]
[1688340704437,0.00473741,30633.0,30632.0,0.29457]
[1688340704836,0.00473741,30633.0,30632.0,0.31341945]
[1688340705843,0.00473741,30633.0,30624.0,0.065311]
[1688340705844,0.0654,30629.0,30624.0,0.065311]
[1688340706033,0.243,30627.0,30625.0,0.019592]
[1688340706237,0.30367114,30626.0,30625.0,0.019592]
[1688340706438,0.30367114,30626.0,30624.0,0.019593]
[1688340706635,0.2449,30625.0,30622.0,0.15665282]
[1688340706837,0.19797994,30623.0,30621.0,0.44466454]
[1688340707144,0.266594,30622.0,30621.0,0.44616454]
[1688340708644,0.28482369,30622.0,30621.0,0.44616454]
[1688340708940,0.266594,30622.0,30621.0,0.44616454]
[1688340709737,0.30367314,30622.0,30621.0,0.44616454]
[1688340709938,0.30367314,30622.0,30621.0,0.42657054]